bitfinex/quotes_SOLUSD_20250611
["timestamp","ask_amount","ask_price","bid_price","bid_amount"]
[1749659002581,0.28432314,166.51,166.42,18.64964886]
[1749659002781,18.48332874,166.48,166.43,18.48332874]
[1749659002977,18.48332874,166.48,166.45,18.64964886]
[1749659003186,18.48332874,166.5,166.45,37.1329776]
[1749659003488,18.48332874,166.48,166.45,18.64964886]
[1749659003677,18.48332874,166.47,166.45,18.64964886]
[1749659004388,6.29003555,166.51,166.45,18.64964886]
[1749659004690,6.29003555,166.51,166.41,44.50964886]
[1749659004691,18.48332874,166.46,166.41,44.50964886]
[1749659004897,0.28432314,166.48,166.41,44.50964886]
[1749659004898,18.48332874,166.44,166.41,44.50964886]
[1749659005069,18.48332874,166.43,166.41,18.64964886]
[1749659005270,18.48332874,166.43,166.41,44.50964886]
[1749659005486,18.48332874,166.44,166.41,44.50964886]
[1749659005786,18.48332874,166.44,166.41,18.64964886]
[1749659005961,0.28432314,166.48,166.41,44.48964886]
[1749659006166,18.48332874,166.45,166.41,62.9729776]
[1749659006510,6.06,166.54,166.45,18.64964886]
[1749659006672,6.06,166.54,166.51,18.64964886]
[1749659006991,18.48332874,166.56,166.51,18.64964886]
[1749659007295,18.48332874,166.55,166.51,18.64964886]
[1749659007509,18.48332874,166.54,166.51,18.64964886]
[1749659007868,18.48332874,166.55,166.51,18.64964886]
[1749659008264,18.48332874,166.54,166.51,18.64964886]
[1749659008572,6.00319318,166.58,166.51,18.64964886]
[1749659008573,18.48332874,166.52,166.51,18.64964886]
[1749659008893,18.48332874,166.52,166.48,18.64964886]
[1749659009187,18.48332874,166.49,166.44,6.3852]
[1749659009374,18.48332874,166.45,166.4,18.48332874]
[1749659009581,18.48332874,166.45,166.41,25.84]
[1749659009881,0.28432314,166.51,166.39,6.0773]
[1749659009882,18.48332874,166.44,166.42,18.64964886]
[1749659010594,0.28432314,166.51,166.43,18.48332874]
[1749659010776,18.48332874,166.47,166.42,18.64964886]
[1749659011179,6.00639309,166.49,166.42,18.64964886]
[1749659011381,6.29009175,166.51,166.43,18.48332874]
[1749659011594,18.48332874,166.48,166.45,18.64964886]
[1749659012497,18.48332874,166.47,166.45,18.64964886]
[1749659012673,6.06,166.52,166.45,37.1329776]
[1749659013074,6.06,166.52,166.47,18.64964886]
[1749659013075,18.48332874,166.51,166.47,18.64964886]
[1749659013283,6.06,166.52,166.47,18.64964886]
[1749659013284,24.54332874,166.52,166.47,62.9729776]
[1749659013595,18.48332874,166.53,166.49,18.64964886]
[1749659013784,18.48332874,166.53,166.51,18.64964886]
[1749659014181,18.48332874,166.54,166.51,18.64964886]
[1749659014386,18.48332874,166.53,166.51,18.64964886]
[1749659016576,0.28432314,166.56,166.51,18.64964886]
[1749659016791,18.48332874,166.53,166.51,18.64964886]
[1749659017078,18.48332874,166.54,166.51,18.64964886]
[1749659017271,18.48332874,166.54,166.51,105.94964886]
[1749659017677,18.48332874,166.53,166.51,105.94964886]
[1749659017878,18.48332874,166.54,166.51,105.94964886]
[1749659018598,18.48332874,166.57,166.53,18.64964886]
[1749659019274,18.48332874,166.57,166.53,44.48964886]
[1749659019505,18.48332874,166.56,166.53,44.48964886]
[1749659019680,0.28432314,166.58,166.53,44.48964886]
[1749659019883,18.48332874,166.57,166.53,44.48964886]
[1749659020200,6.06,166.6,166.53,150.2729776]
[1749659020384,18.48332874,166.59,166.55,18.64964886]
[1749659020595,18.48332874,166.59,166.55,105.94964886]
[1749659021105,18.48332874,166.59,166.55,131.78964886]
[1749659021302,24.54332874,166.6,166.55,150.2729776]
[1749659021509,14.99831432,166.69,166.56,6.0041]
[1749659021807,5.99952003,166.68,166.6,18.48332874]
[1749659022008,18.48332874,166.67,166.62,37.1329776]
[1749659022617,0.28432314,166.66,166.62,37.1329776]
[1749659022787,18.48332874,166.67,166.62,37.1329776]
[1749659023692,18.48332874,166.66,166.62,18.64964886]
[1749659023876,18.48332874,166.66,166.61,18.48332874]
[1749659023877,18.48332874,166.65,166.61,18.64964886]
[1749659024075,18.48332874,166.66,166.61,37.1329776]
[1749659024505,0.28432314,166.68,166.63,18.64964886]
[1749659024506,18.48332874,166.67,166.63,18.64964886]
[1749659024899,18.48332874,166.66,166.63,18.64964886]
[1749659025399,5.99991534,166.67,166.63,18.64964886]
[1749659025595,18.48332874,166.65,166.63,18.64964886]
[1749659025776,18.48332874,166.64,166.62,25.84]
[1749659025983,18.48332874,166.65,166.62,25.84]
[1749659027998,18.48332874,166.66,166.62,25.84]
[1749659028594,18.48332874,166.66,166.63,18.64964886]
[1749659029308,18.48332874,166.65,166.62,25.84]
[1749659030713,18.76765188,166.66,166.62,25.84]
[1749659033123,18.48332874,166.65,166.62,25.84]
[1749659033893,18.76765188,166.66,166.62,25.84]
[1749659034195,18.48332874,166.67,166.63,37.1329776]
[1749659034614,18.48332874,166.68,166.63,37.1329776]
[1749659037700,0.28432314,166.69,166.63,37.1329776]
[1749659038007,18.48332874,166.68,166.63,37.1329776]
[1749659038414,18.48332874,166.67,166.63,37.1329776]
[1749659039012,18.48332874,166.67,166.63,124.4329776]
[1749659039338,18.76765188,166.69,166.65,18.64964886]
[1749659039502,18.48332874,166.68,166.65,44.46964886]
[1749659040411,0.28432314,166.69,166.65,44.46964886]
[1749659040933,18.48332874,166.68,166.65,44.46964886]
[1749659041794,6.28348405,166.69,166.58,87.3]
[1749659041795,18.48332874,166.66,166.58,87.3]
[1749659041995,18.48332874,166.61,166.59,18.64964886]
[1749659042199,0.28432314,166.67,166.56,6.0041]
[1749659042200,18.48332874,166.6,166.56,6.0041]
[1749659042401,18.48332874,166.59,166.57,18.64964886]
[1749659043000,0.28432314,166.62,166.57,18.64964886]
[1749659043697,18.48332874,166.61,166.57,18.64964886]
[1749659043929,6.00036979,166.66,166.57,37.1329776]
[1749659044134,18.48332874,166.62,166.59,18.64964886]
[1749659045401,0.28432314,166.66,166.59,18.64964886]
[1749659045402,18.48332874,166.63,166.59,18.64964886]
[1749659046128,6.28456493,166.66,166.59,18.64964886]
[1749659046341,18.48332874,166.63,166.59,18.64964886]
[1749659047241,18.48332874,166.65,166.6,18.48332874]
[1749659047444,18.48332874,166.65,166.61,18.64964886]
[1749659047733,18.48332874,166.64,166.61,44.46964886]
[1749659048644,18.48332874,166.62,166.61,25.82]
[1749659048940,18.48332874,166.67,166.62,18.64964886]
[1749659049119,6.06,166.7,166.64,37.1329776]
[1749659049313,18.48332874,166.69,166.64,37.1329776]
[1749659049915,6.06,166.7,166.64,18.64964886]
[1749659049916,18.48332874,166.68,166.64,18.64964886]
[1749659050111,0.28432314,166.69,166.64,37.1329776]
[1749659050504,18.48332874,166.68,166.64,18.64964886]
[1749659051205,18.48332874,166.67,166.64,18.64964886]
[1749659051606,18.48332874,166.66,166.64,18.64964886]
[1749659051821,18.48332874,166.66,166.62,87.3]
[1749659051822,5.99988929,166.67,166.62,87.3]
[1749659052023,18.48332874,166.64,166.62,131.76964886]
[1749659052226,18.48332874,166.63,166.62,131.76964886]
[1749659052429,18.48332874,166.63,166.62,44.46964886]
[1749659052817,18.48332874,166.64,166.62,44.46964886]
[1749659054305,12.05891571,166.7,166.63,18.64964886]
[1749659054510,18.48332874,166.68,166.65,18.64964886]
[1749659054806,18.48332874,166.69,166.65,18.64964886]
[1749659055007,6.06,166.7,166.65,18.64964886]
[1749659055216,18.48332874,166.69,166.66,25.8]
[1749659055511,18.48332874,166.68,166.66,25.8]
[1749659055907,6.06,166.7,166.67,18.64964886]
[1749659056112,18.48332874,166.69,166.67,18.64964886]
[1749659056317,11.96563218,166.75,166.67,37.1329776]
[1749659056535,11.96563218,166.75,166.64,93.8674]
[1749659056536,18.48332874,166.74,166.69,18.64964886]
[1749659056720,6.04,166.78,166.71,18.64964886]
[1749659056721,18.48332874,166.75,166.71,18.64964886]
[1749659056918,18.48332874,166.75,166.72,25.8]
[1749659057616,18.48332874,166.73,166.72,44.44964886]
[1749659058024,18.48332874,166.73,166.72,25.8]
[1749659058226,18.48332874,166.73,166.71,18.64964886]
[1749659058554,18.48332874,166.72,166.71,18.64964886]
[1749659058734,18.48332874,166.73,166.71,18.64964886]
[1749659060414,18.48332874,166.75,166.71,18.64964886]
[1749659060619,0.28432314,166.77,166.71,37.1329776]
[1749659060821,0.28432314,166.77,166.68,26.0]
[1749659060822,18.48332874,166.77,166.73,18.64964886]
[1749659061131,18.48332874,166.75,166.73,44.44964886]
[1749659061436,18.48332874,166.74,166.71,25.8]
[1749659061736,18.76765188,166.77,166.72,62.9329776]
[1749659061938,18.48332874,166.77,166.72,62.9329776]
[1749659062122,6.04,166.78,166.74,18.48332874]
[1749659062326,18.48332874,166.79,166.74,44.28332874]
[1749659063013,0.28432314,166.81,166.74,25.8]
[1749659063214,5.99475545,166.82,166.74,25.8]
[1749659063215,18.48332874,166.75,166.74,44.44964886]
[1749659063523,18.48332874,166.76,166.74,44.44964886]
[1749659064027,18.48332874,166.75,166.74,44.44964886]
[1749659064741,18.48332874,166.75,166.71,18.64964886]
[1749659064918,18.48332874,166.76,166.7,25.8]
[1749659064919,0.28432314,166.74,166.7,25.8]
[1749659065245,18.48332874,166.71,166.7,44.44964886]
[1749659065735,18.48332874,166.74,166.71,18.64964886]
[1749659065925,18.48332874,166.74,166.72,25.8]
[1749659066125,5.99639704,166.77,166.72,44.44964886]
[1749659066126,18.48332874,166.73,166.72,44.44964886]
[1749659066838,18.48332874,166.74,166.72,44.44964886]
[1749659068435,18.48332874,166.75,166.73,18.64964886]
[1749659068629,18.48332874,166.76,166.73,105.94964886]
[1749659068939,18.48332874,166.76,166.74,25.78]
[1749659069241,18.48332874,166.75,166.74,44.42964886]
[1749659070520,18.48332874,166.75,166.73,87.3]
[1749659070826,18.48332874,166.74,166.73,113.08]
[1749659071021,18.48332874,166.74,166.73,87.3]
[1749659071244,18.48332874,166.75,166.74,18.64964886]
[1749659071430,18.48332874,166.76,166.74,18.64964886]
[1749659071733,18.48332874,166.76,166.74,44.42964886]
[1749659071924,18.48332874,166.75,166.74,44.42964886]
[1749659073119,18.48332874,166.76,166.74,44.42964886]
[1749659073319,6.27927025,166.81,166.74,44.42964886]
[1749659073563,18.48332874,166.76,166.74,44.42964886]
[1749659074044,18.48332874,166.75,166.74,44.42964886]
[1749659074933,18.48332874,166.75,166.73,113.08]
[1749659075136,18.48332874,166.74,166.68,6.358]
[1749659075332,18.48332874,166.71,166.69,44.42964886]
[1749659078233,18.48332874,166.71,166.7,25.78]
[1749659078426,18.48332874,166.71,166.7,44.42964886]
[1749659078627,18.48332874,166.71,166.64,44.48332874]
[1749659078933,18.48332874,166.67,166.65,44.42964886]
[1749659079247,18.48332874,166.67,166.66,18.64964886]
[1749659079618,18.48332874,166.67,166.66,44.42964886]
[1749659079822,0.28432314,166.73,166.66,44.42964886]
[1749659079823,0.28432314,166.73,166.67,18.64964886]
[1749659080026,18.48332874,166.72,166.69,18.64964886]
[1749659080217,0.28432314,166.74,166.7,25.78]
[1749659080444,18.48332874,166.71,166.7,44.42964886]
[1749659080828,5.9970776,166.75,166.7,25.78]
[1749659081061,18.48332874,166.71,166.69,25.78]
[1749659081342,5.9970776,166.75,166.65,18.64964886]
[1749659081343,18.48332874,166.7,166.65,18.64964886]
[1749659081518,18.48332874,166.67,166.66,44.42964886]
[1749659081717,18.48332874,166.68,166.66,44.42964886]
[1749659081917,18.48332874,166.69,166.67,18.64964886]
[1749659082232,18.48332874,166.7,166.69,18.64964886]
[1749659082541,18.48332874,166.7,166.69,44.42964886]
[1749659084840,18.48332874,166.71,166.69,44.42964886]
[1749659085230,18.48332874,166.7,166.69,44.42964886]
[1749659087236,18.48332874,166.7,166.63,95.0544]
[1749659087547,18.48332874,166.65,166.64,44.42964886]
[1749659087724,0.28432314,166.72,166.64,44.42964886]
[1749659087725,0.28432314,166.74,166.64,62.9129776]
[1749659087930,18.48332874,166.72,166.67,18.64964886]
[1749659088135,18.48332874,166.72,166.69,18.64964886]
[1749659088349,18.48332874,166.72,166.7,25.78]
[1749659089247,18.48332874,166.71,166.7,44.42964886]
[1749659089451,0.28432314,166.75,166.7,25.78]
[1749659089859,0.28432314,166.7,166.67,87.3]
[1749659090026,0.42648471,166.75,166.67,113.08]
[1749659090027,18.48332874,166.68,166.67,113.08]
[1749659090226,0.28432314,166.72,166.67,113.08]
[1749659090227,18.48332874,166.69,166.68,18.64964886]
[1749659092752,0.28432314,166.73,166.68,18.64964886]
[1749659092962,18.48332874,166.73,166.7,18.64964886]
[1749659093254,18.48332874,166.72,166.71,44.42964886]
[1749659097758,0.28432314,166.76,166.71,44.42964886]
[1749659097934,18.48332874,166.74,166.72,18.64964886]
[1749659098277,10.45348969,166.82,166.74,18.64964886]
[1749659098553,18.48332874,166.79,166.76,18.64964886]
[1749659098742,18.48332874,166.79,166.77,25.76]
[1749659100137,18.48332874,166.79,166.78,18.64964886]
[1749659100355,18.48332874,166.8,166.78,18.64964886]
[1749659100554,18.48332874,166.81,166.79,25.76]
[1749659100936,18.48332874,166.8,166.79,25.76]
[1749659102450,18.48332874,166.8,166.69,87.3]
[1749659102451,0.42648471,166.79,166.69,87.3]
[1749659102668,18.48332874,166.72,166.71,44.40964886]
[1749659102833,18.48332874,166.73,166.71,44.40964886]
[1749659103233,18.48332874,166.74,166.71,44.40964886]
[1749659103435,18.48332874,166.73,166.71,44.40964886]
[1749659104940,18.48332874,166.73,166.71,18.64964886]
[1749659105144,18.48332874,166.73,166.72,44.40964886]
[1749659106034,18.48332874,166.76,166.73,18.64964886]
[1749659106239,18.48332874,166.78,166.75,18.64964886]
[1749659106461,18.48332874,166.78,166.76,25.76]
[1749659106847,2.92552048,166.83,166.76,25.76]
[1749659106848,8.9197392,166.83,166.77,18.64964886]
[1749659107062,18.48332874,166.79,166.77,18.64964886]
[1749659107562,18.48332874,166.8,166.78,25.76]
[1749659108441,18.48332874,166.81,166.79,18.64964886]
[1749659109656,6.02,166.85,166.81,18.64964886]
[1749659109851,18.48332874,166.84,166.81,18.64964886]
[1749659110055,18.48332874,166.84,166.82,25.76]
[1749659110561,18.48332874,166.83,166.82,25.76]
[1749659111367,0.28432314,166.82,166.78,25.74]
[1749659111754,0.28432314,166.82,166.78,44.38964886]
[1749659111948,18.48332874,166.8,166.78,44.38964886]
[1749659112356,0.28432314,166.84,166.79,18.64964886]
[1749659112552,18.48332874,166.8,166.79,18.64964886]
[1749659112872,0.28432314,166.79,166.75,18.64964886]
[1749659113083,18.48332874,166.76,166.75,18.64964886]
[1749659113277,18.48332874,166.76,166.74,18.64964886]
[1749659113457,0.28432314,166.79,166.71,18.64964886]
[1749659113458,18.48332874,166.75,166.71,18.64964886]
[1749659113779,0.28432314,166.79,166.71,18.64964886]
[1749659113780,18.48332874,166.73,166.71,105.94964886]
[1749659113990,18.48332874,166.73,166.71,131.68964886]
[1749659115775,18.48332874,166.74,166.71,131.68964886]
[1749659117375,4.46524779,166.81,166.71,150.1729776]
[1749659117573,18.48332874,166.77,166.72,18.48332874]
[1749659117779,18.48332874,166.77,166.74,18.64964886]
[1749659118153,18.48332874,166.76,166.74,18.64964886]
[1749659118472,18.48332874,166.75,166.74,18.64964886]
[1749659118661,18.48332874,166.75,166.73,25.74]
[1749659118865,18.48332874,166.74,166.73,44.38964886]
[1749659119064,0.28432314,166.76,166.72,87.3]
[1749659119260,18.48332874,166.73,166.72,105.94964886]
[1749659119463,18.48332874,166.73,166.72,18.64964886]
[1749659121762,0.28432314,166.77,166.72,18.64964886]
[1749659121965,18.48332874,166.73,166.71,18.64964886]
[1749659122273,18.48332874,166.72,166.66,88.912]
[1749659122472,18.48332874,166.68,166.67,18.64964886]
[1749659122779,18.48332874,166.68,166.66,18.64964886]
[1749659122986,18.48332874,166.67,166.66,18.64964886]
[1749659123377,18.48332874,166.68,166.66,18.64964886]
[1749659123681,18.48332874,166.69,166.66,18.64964886]
[1749659124382,0.28432314,166.72,166.68,18.64964886]
[1749659124383,18.48332874,166.72,166.68,18.64964886]
[1749659124564,18.48332874,166.77,166.72,18.64964886]
[1749659124765,18.48332874,166.77,166.74,18.64964886]
[1749659125074,18.48332874,166.76,166.74,18.64964886]
[1749659128566,0.28432314,166.74,166.71,87.3]
[1749659128779,18.48332874,166.72,166.71,87.3]
[1749659128980,18.48332874,166.72,166.7,25.74]
[1749659129183,0.28432314,166.74,166.7,25.74]
[1749659129380,18.48332874,166.74,166.71,18.64964886]
[1749659130093,18.48332874,166.72,166.71,18.64964886]
[1749659130393,18.48332874,166.72,166.7,25.74]
[1749659130603,18.48332874,166.71,166.7,44.38964886]
[1749659131283,18.48332874,166.71,166.7,18.64964886]
[1749659131480,18.48332874,166.71,166.66,87.3]
[1749659131686,0.42648471,166.74,166.67,18.64964886]
[1749659131892,18.48332874,166.68,166.67,18.64964886]
[1749659132190,18.48332874,166.68,166.66,18.64964886]
[1749659132375,18.48332874,166.67,166.66,44.38964886]
[1749659133631,0.28432314,166.73,166.66,44.38964886]
[1749659133778,18.48332874,166.7,166.66,44.38964886]
[1749659133975,18.48332874,166.72,166.66,150.1729776]
[1749659134192,18.48332874,166.73,166.69,18.64964886]
[1749659134391,18.48332874,166.74,166.71,18.64964886]
[1749659135286,18.48332874,166.74,166.73,18.64964886]
[1749659136009,18.48332874,166.74,166.72,25.74]
[1749659136290,0.28432314,166.75,166.71,18.64964886]
[1749659136508,18.48332874,166.74,166.71,18.64964886]
[1749659136683,18.48332874,166.75,166.72,25.74]
[1749659136878,18.48332874,166.76,166.73,18.64964886]
[1749659137492,1.6495,166.8,166.75,18.64964886]
[1749659137676,18.48332874,166.76,166.75,18.64964886]
[1749659140487,18.48332874,166.76,166.75,18.64964886]
[1749659142377,18.48332874,166.77,166.75,18.64964886]
[1749659142700,18.48332874,166.76,166.75,105.94964886]
[1749659147787,18.48332874,166.76,166.75,87.3]
[1749659148627,18.48332874,166.76,166.74,25.72]
[1749659148779,18.48332874,166.75,166.74,44.36964886]
[1749659149493,0.28432314,166.8,166.75,18.64964886]
[1749659149691,18.48332874,166.77,166.76,18.64964886]
[1749659149904,18.48332874,166.77,166.75,113.02]
[1749659150092,37.25098062,166.76,166.75,87.3]
[1749659150289,0.28432314,166.75,166.7,18.64964886]
[1749659150601,0.28432314,166.75,166.68,18.64964886]
[1749659150602,18.48332874,166.71,166.68,18.64964886]
[1749659150801,18.48332874,166.69,166.68,18.64964886]
[1749659151189,18.48332874,166.69,166.67,18.64964886]
[1749659151391,18.48332874,166.68,166.67,18.64964886]
[1749659151784,18.48332874,166.68,166.67,44.36964886]
[1749659152798,18.48332874,166.71,166.68,18.64964886]
[1749659153102,11.58067881,166.8,166.7,18.64964886]
[1749659153103,18.48332874,166.73,166.7,18.64964886]
[1749659153281,18.48332874,166.73,166.72,18.64964886]
[1749659157220,18.48332874,166.73,166.71,25.72]
[1749659157403,18.48332874,166.72,166.7,44.36964886]
[1749659157603,18.48332874,166.71,166.7,44.36964886]
[1749659158415,18.48332874,166.73,166.7,44.36964886]
[1749659158594,18.48332874,166.73,166.7,131.66964886]
[1749659159307,18.48332874,166.71,166.7,131.66964886]
[1749659160609,18.48332874,166.72,166.7,131.66964886]
[1749659160820,6.28026837,166.78,166.7,131.66964886]
[1749659160821,18.48332874,166.73,166.7,131.66964886]
[1749659161297,18.48332874,166.77,166.72,18.48332874]
[1749659161500,18.48332874,166.76,166.73,44.36964886]
[1749659161706,18.48332874,166.76,166.73,131.66964886]
[1749659162211,18.48332874,166.74,166.73,105.94964886]
[1749659162418,0.42648471,166.79,166.73,25.72]
[1749659162593,18.48332874,166.74,166.72,25.72]
[1749659162789,18.48332874,166.73,166.72,44.36964886]
[1749659162988,18.48332874,166.73,166.7,18.64964886]
[1749659163196,18.48332874,166.71,166.66,87.3]
[1749659163390,18.48332874,166.68,166.67,44.36964886]
[1749659163636,18.48332874,166.69,166.67,131.66964886]
[1749659164321,18.48332874,166.68,166.58,7.7487]
[1749659164619,18.48332874,166.62,166.59,25.72]
[1749659164807,18.48332874,166.63,166.6,18.64964886]
[1749659165116,18.48332874,166.63,166.58,33.89086157]
[1749659165117,18.48332874,166.63,166.62,18.64964886]
[1749659165316,18.48332874,166.63,166.58,52.37419031]
[1749659165317,18.48332874,166.63,166.58,33.7487]
[1749659165493,18.48332874,166.62,166.59,44.36964886]
[1749659166022,18.48332874,166.61,166.59,44.36964886]
[1749659166399,18.48332874,166.62,166.59,44.36964886]
[1749659166801,18.48332874,166.61,166.59,44.36964886]
[1749659167022,18.48332874,166.62,166.59,44.36964886]
[1749659167220,18.48332874,166.61,166.59,18.64964886]
[1749659167413,18.48332874,166.6,166.59,18.64964886]
[1749659167817,18.48332874,166.6,166.55,18.64964886]
[1749659168125,0.28432314,166.64,166.57,18.64964886]
[1749659168325,0.28432314,166.62,166.54,7.8634]
[1749659168533,3.34800695,166.62,166.54,6.3513]
[1749659168741,0.28432314,166.62,166.56,18.64964886]
[1749659169306,18.48332874,166.57,166.56,18.64964886]
[1749659170013,18.48332874,166.57,166.5,33.8746]
[1749659170330,18.48332874,166.52,166.51,18.64964886]
[1749659170528,18.48332874,166.52,166.51,44.36964886]
[1749659170729,18.48332874,166.53,166.51,44.36964886]
[1749659171414,18.48332874,166.54,166.51,44.36964886]
[1749659172331,9.27020274,166.62,166.51,44.36964886]
[1749659172511,18.48332874,166.54,166.51,44.36964886]
[1749659172715,18.48332874,166.52,166.51,44.36964886]
[1749659173228,18.48332874,166.52,166.51,18.64964886]
[1749659173532,18.48332874,166.52,166.51,44.36964886]
[1749659176031,18.48332874,166.53,166.51,44.36964886]
[1749659176417,18.48332874,166.54,166.51,44.36964886]
[1749659177346,19.00461272,166.64,166.52,18.48332874]
[1749659177640,18.48332874,166.57,166.53,44.36964886]
[1749659177839,18.48332874,166.56,166.53,44.36964886]
[1749659178134,18.48332874,166.54,166.53,44.36964886]
[1749659178916,18.48332874,166.54,166.53,25.72]
[1749659180425,18.48332874,166.54,166.53,44.36964886]
[1749659181129,18.48332874,166.54,166.53,131.66964886]
[1749659182123,0.28432314,166.57,166.53,44.36964886]
[1749659182318,18.48332874,166.54,166.53,44.36964886]
[1749659184131,18.48332874,166.54,166.5,87.3]
[1749659184332,18.48332874,166.51,166.5,105.94964886]
[1749659184534,18.48332874,166.51,166.5,131.66964886]
[1749659185543,18.48332874,166.51,166.48,18.64964886]
[1749659185737,0.28432314,166.52,166.49,25.72]
[1749659185931,0.28432314,166.52,166.48,18.64964886]
[1749659185932,18.48332874,166.54,166.48,44.36964886]
[1749659186158,1.5801,166.57,166.48,44.36964886]
[1749659186159,18.48332874,166.52,166.48,44.36964886]
[1749659186450,18.48332874,166.51,166.48,131.66964886]
[1749659186628,18.48332874,166.5,166.48,131.66964886]
[1749659187139,0.28432314,166.56,166.48,131.66964886]
[1749659187332,18.48332874,166.51,166.48,131.66964886]
[1749659188052,18.48332874,166.52,166.48,131.66964886]
[1749659188351,18.48332874,166.51,166.48,131.66964886]
[1749659189448,11.32545129,166.51,166.48,131.66964886]
[1749659191743,0.28432314,166.56,166.48,131.66964886]
[1749659192133,11.32545129,166.53,166.48,142.99510015]
[1749659193030,11.32545129,166.53,166.48,131.66964886]
[1749659194067,11.32545129,166.52,166.48,131.66964886]
[1749659194463,0.28432314,166.56,166.48,44.36964886]
[1749659194464,11.32545129,166.49,166.48,44.36964886]
[1749659194762,11.32545129,166.49,166.48,25.72]
[1749659194972,11.32545129,166.49,166.47,113.02]
[1749659195170,11.32545129,166.48,166.47,131.66964886]
[1749659195366,11.32545129,166.48,166.47,44.36964886]
[1749659196102,1.92802314,166.53,166.48,18.64964886]
[1749659196265,11.32545129,166.49,166.48,18.64964886]
[1749659198395,11.32545129,166.49,166.48,44.36964886]
[1749659199096,6.00467019,166.54,166.48,44.36964886]
[1749659199274,11.32545129,166.52,166.48,131.66964886]
[1749659199663,11.32545129,166.51,166.48,131.66964886]
[1749659202383,6.00398543,166.56,166.49,26.0]
[1749659202584,11.32545129,166.57,166.52,18.64964886]
[1749659202792,6.00240096,166.6,166.54,18.64964886]
[1749659203104,11.32545129,166.57,166.56,18.64964886]
[1749659203296,11.32545129,166.57,166.56,44.36964886]
[1749659203811,11.32545129,166.58,166.57,18.64964886]
[1749659204999,6.00204069,166.61,166.57,18.64964886]
[1749659205193,11.32545129,166.58,166.54,18.64964886]
[1749659205408,11.32545129,166.57,166.55,25.72]
[1749659205927,11.32545129,166.56,166.55,44.36964886]
[1749659206522,11.32545129,166.57,166.55,44.36964886]
[1749659209119,11.32545129,166.57,166.55,25.72]
[1749659209427,11.32545129,166.56,166.55,44.36964886]
[1749659210594,11.32545129,166.56,166.52,26.0]
[1749659210595,17.32929374,166.56,166.52,87.3]
[1749659210800,11.32545129,166.53,166.52,113.0]
[1749659211006,11.32545129,166.53,166.52,25.7]
[1749659211526,11.32545129,166.53,166.52,44.34964886]
[1749659212121,10.46221532,166.6,166.53,18.64964886]
[1749659212324,11.32545129,166.57,166.55,18.64964886]
[1749659212506,11.32545129,166.57,166.52,17.44225129]
[1749659212507,11.32545129,166.57,166.56,44.34964886]
[1749659213218,18.44385337,166.57,166.56,44.34964886]
[1749659214426,0.28432314,166.61,166.57,18.64964886]
[1749659214718,0.28432314,166.61,166.58,25.7]
[1749659215629,1.6655,166.62,166.58,25.7]
[1749659215925,18.44385337,166.59,166.58,18.64964886]
[1749659218738,18.44385337,166.59,166.57,25.7]
[1749659218933,18.44385337,166.58,166.57,25.7]
[1749659219125,18.44385337,166.58,166.56,18.64964886]
[1749659219440,18.44385337,166.57,166.52,6.1168]
[1749659219641,6.00276557,166.59,166.54,18.64964886]
[1749659219962,0.28432314,166.58,166.54,44.34964886]
[1749659220315,6.00132029,166.63,166.54,44.34964886]
[1749659220628,0.28432314,166.62,166.54,131.64964886]
[1749659220937,18.44385337,166.58,166.54,131.64964886]
[1749659221110,10.46074751,166.64,166.54,150.09350223]
[1749659221314,10.46074751,166.64,166.55,6.21036157]
[1749659221315,18.44385337,166.59,166.55,6.21036157]
[1749659221638,6.00098114,166.64,166.56,44.34964886]
[1749659221639,18.44385337,166.57,166.56,44.34964886]
[1749659222714,0.28432314,166.63,166.56,44.34964886]
[1749659222934,24.42385337,166.65,166.56,131.64964886]
[1749659223129,18.44385337,166.6,166.56,131.64964886]
[1749659223329,18.44385337,166.58,166.56,131.64964886]
[1749659224570,18.44385337,166.57,166.56,105.94964886]
[1749659224745,18.44385337,166.57,166.55,18.64964886]
[1749659224952,18.44385337,166.56,166.55,18.64964886]
[1749659225654,6.00293738,166.59,166.55,18.64964886]
[1749659225850,18.44385337,166.56,166.55,18.64964886]
[1749659227369,15.00316648,166.64,166.55,18.64964886]
[1749659227370,18.44385337,166.6,166.55,124.39350223]
[1749659227576,18.44385337,166.6,166.57,18.64964886]
[1749659227874,0.28432314,166.64,166.59,18.64964886]
[1749659228078,0.28432314,166.64,166.6,18.64964886]
[1749659229055,18.44385337,166.61,166.6,18.64964886]
[1749659233255,12.72602067,166.61,166.6,18.64964886]
[1749659234274,12.72602067,166.61,166.6,105.94964886]
[1749659234477,5.98,166.65,166.6,105.94964886]
[1749659234686,12.72602067,166.64,166.61,25.68]
[1749659235051,12.72602067,166.64,166.62,18.64964886]
[1749659235252,12.72602067,166.68,166.64,18.64964886]
[1749659235462,12.72602067,166.68,166.64,105.94964886]
[1749659235872,12.72602067,166.65,166.64,105.94964886]
[1749659237771,0.28432314,166.71,166.64,105.94964886]